bitfinex/quotes_ETHUSD_20251126
["timestamp","ask_amount","ask_price","bid_price","bid_amount"]
[1764181311096,0.1891,3036.9,3036.7,0.213]
[1764181311284,0.967,3036.8,3036.7,0.213]
[1764181311482,0.4838,3036.8,3036.7,0.213]
[1764181311777,6.58744616,3037.0,3036.7,0.213]
[1764181311987,0.49742334,3036.9,3036.7,0.213]
[1764181312181,0.1891,3036.9,3036.7,0.213]
[1764181312387,0.002,3037.0,3036.7,0.213]
[1764181312599,0.30833704,3036.9,3036.7,0.213]
[1764181312803,0.002,3037.0,3036.7,0.213]
[1764181312974,0.49743703,3036.9,3036.7,0.213]
[1764181313170,0.4838,3036.8,3036.7,0.213]
[1764181313398,0.002,3037.0,3036.7,0.213]
[1764181314273,0.4852,3037.0,3036.7,0.213]
[1764181314469,0.1891,3036.9,3036.7,0.213]
[1764181314807,0.4838,3036.8,3036.7,0.213]
[1764181315811,0.967,3036.8,3036.7,0.213]
[1764181316214,4.25993993,3036.8,3036.7,0.213]
[1764181317105,3.29475934,3037.0,3036.7,0.213]
[1764181317273,3.29475934,3037.0,3036.7,0.6691]
[1764181317481,6.58751868,3037.0,3036.7,0.6691]
[1764181317672,6.58751868,3037.0,3036.7,0.213]
[1764181317884,7.07071868,3037.0,3036.7,0.213]
[1764181319192,6.58751868,3037.0,3036.7,0.213]
[1764181319393,3.29475934,3037.0,3036.9,0.4561]
[1764181319704,3.29472308,3037.0,3036.9,0.4561]
[1764181320012,0.002,3037.0,3036.9,0.9223]
[1764181320182,0.002,3037.0,3036.9,4.98726746]
[1764181321504,0.002,3037.0,3036.9,1.69443596]
[1764181321812,0.002,3037.0,3036.9,0.9223]
[1764181321981,0.002,3037.0,3036.9,4.2151315]
[1764181323507,0.002,3037.0,3036.9,0.9223]
[1764181324421,0.002,3037.0,3036.9,10.404451]
[1764181324709,0.002,3037.0,3036.9,0.6691]
[1764181325014,0.002,3037.0,3036.9,1.1353]
[1764181326202,0.002,3037.0,3036.9,0.6691]
[1764181326584,0.002,3037.0,3036.9,1.1379]
[1764181327207,0.002,3037.0,3036.9,4.87382166]
[1764181328618,0.002,3037.0,3036.9,12.70848166]
[1764181329082,0.002,3037.0,3036.9,11.72816766]
[1764181329925,0.002,3037.0,3036.9,30.68109877]
[1764181330136,0.002,3037.3,3037.2,15.20446611]
[1764181330292,0.002,3037.3,3037.2,20.49401897]
[1764181330595,0.002,3037.3,3037.2,12.01900597]
[1764181331114,0.002,3037.3,3037.2,15.02216397]
[1764181331994,0.002,3037.3,3037.2,29.43711797]
[1764181332221,0.002,3037.3,3037.2,19.55591797]
[1764181332395,0.002,3037.3,3037.2,17.97458097]
[1764181333100,0.002,3037.3,3037.2,15.08796397]
[1764181334000,0.002,3037.3,3037.2,14.61682997]
[1764181334213,0.002,3037.3,3037.2,15.11072997]
[1764181334727,0.002,3037.3,3037.2,10.91881972]
[1764181335023,0.002,3037.3,3037.2,14.63942697]
[1764181335199,0.002,3037.3,3037.2,13.17942697]
[1764181335816,0.002,3037.3,3037.2,13.67332697]
[1764181336026,0.002,3037.3,3037.2,6.22814697]
[1764181336201,0.002,3037.3,3037.2,11.97650997]
[1764181336835,0.002,3037.3,3037.2,0.6749]
[1764181337055,0.002,3037.3,3037.2,11.85301511]
[1764181337236,0.002,3037.3,3037.2,7.13356511]
[1764181337431,0.002,3037.3,3037.2,1.89439411]
[1764181337660,0.002,3037.3,3037.2,0.6749]
[1764181338253,0.002,3037.3,3037.2,0.213]
[1764181338765,0.002,3037.3,3037.2,0.6749]
[1764181339257,0.002,3037.3,3037.2,4.48611531]
[1764181339461,0.002,3037.3,3037.2,1.19360906]
[1764181339953,0.002,3037.3,3037.2,0.213]
[1764181340259,0.002,3037.3,3037.2,3.96740625]
[1764181340562,0.002,3037.3,3037.2,4.46130625]
[1764181340729,0.002,3037.3,3037.2,3.96740625]
[1764181341454,0.002,3037.3,3037.2,4.46130625]
[1764181341662,0.002,3037.3,3037.2,23.37162885]
[1764181341840,0.002,3037.3,3037.2,19.81125985]
[1764181342044,0.002,3037.3,3037.2,18.03406185]
[1764181342236,0.002,3037.3,3037.2,12.26058685]
[1764181342557,0.002,3037.3,3037.2,10.41517585]
[1764181342856,0.002,3037.3,3037.2,10.28296285]
[1764181343056,0.002,3037.3,3037.2,9.24340385]
[1764181343263,0.002,3037.3,3037.2,9.24266085]
[1764181343757,0.002,3037.5,3037.2,9.24266085]
[1764181343758,0.002,3037.5,3037.4,20.01622211]
[1764181343940,0.002,3037.7,3037.6,14.846499]
[1764181344138,0.002,3037.9,3037.8,0.05]
[1764181344342,0.002,3037.9,3037.8,21.86447011]
[1764181344558,0.002,3037.9,3037.8,20.95281133]
[1764181344757,0.002,3037.9,3037.8,19.06495511]
[1764181344962,0.002,3037.9,3037.8,14.97799462]
[1764181345148,0.002,3037.9,3037.8,18.21985056]
[1764181345750,0.002,3037.9,3037.8,35.71539956]
[1764181345956,0.002,3037.9,3037.8,34.88971156]
[1764181346871,0.002,3037.9,3037.8,37.30654956]
[1764181347754,0.002,3037.9,3037.8,23.09094156]
[1764181347952,0.002,3037.9,3037.8,21.86536456]
[1764181348868,0.002,3037.9,3037.8,25.28497756]
[1764181349753,0.002,3037.9,3037.8,30.05849885]
[1764181349955,0.002,3037.9,3037.8,27.38917085]
[1764181350760,0.002,3037.9,3037.8,7.43828385]
[1764181350981,0.002,3037.9,3037.8,35.51048834]
[1764181351755,0.002,3037.9,3037.8,5.51048834]
[1764181351956,0.002,3037.9,3037.8,35.51048834]
[1764181353180,0.1837,3038.9,3037.8,35.51048834]
[1764181353181,0.4482,3039.2,3038.4,0.405504]
[1764181353385,0.4482,3039.2,3038.7,3.29088096]
[1764181353688,3.7385501,3039.2,3038.7,0.7560505]
[1764181353885,3.7385501,3039.2,3038.5,0.93859411]
[1764181353886,0.4797,3038.8,3038.6,3.29097575]
[1764181354798,0.4797,3038.8,3038.5,7.52074383]
[1764181355153,3.29027717,3039.3,3038.7,0.4619]
[1764181355358,3.2900148,3039.5,3038.8,3.29077267]
[1764181355581,7.0702296,3039.5,3038.9,0.213]
[1764181355856,0.4902,3039.4,3038.9,0.213]
[1764181356057,0.4797,3039.0,3038.9,0.213]
[1764181356484,0.9699,3039.0,3038.9,0.213]
[1764181357089,0.9199,3039.0,3038.9,0.213]
[1764181358261,0.9199,3039.0,3038.9,0.56337646]
[1764181358460,0.9199,3039.0,3038.9,0.213]
[1764181360593,4.2104561,3039.0,3038.9,0.213]
[1764181361073,0.4297,3039.0,3038.9,0.213]
[1764181361274,0.4902,3039.4,3038.9,0.213]
[1764181361970,0.002,3039.6,3039.0,13.037209]
[1764181362205,0.002,3039.6,3039.2,30.0]
[1764181362423,0.002,3039.6,3039.5,0.4619]
[1764181362572,0.002,3039.6,3039.5,4.743544]
[1764181362773,0.002,3039.6,3039.0,3.78437897]
[1764181362774,0.4817,3039.6,3039.4,9.893791]
[1764181363106,0.4817,3039.6,3039.0,0.1891]
[1764181363107,0.9699,3039.5,3038.8,0.213]
[1764181363317,0.9699,3039.5,3038.9,0.213]
[1764181363506,0.4902,3039.4,3038.9,0.213]
[1764181363803,0.4902,3039.4,3038.2,0.77559411]
[1764181363804,0.1207,3039.0,3038.3,0.72559411]
[1764181364004,3.29066438,3038.9,3038.4,0.61469716]
[1764181364191,3.95876438,3038.9,3038.4,0.213]
[1764181364506,0.4586,3038.5,3038.1,0.72559411]
[1764181364693,3.29047159,3039.1,3038.1,0.72559411]
[1764181364694,0.4836,3039.4,3038.3,25.939743]
[1764181365005,7.06386738,3039.4,3038.5,13.227323]
[1764181365175,10.35400107,3039.4,3038.6,0.213]
[1764181365503,0.4586,3038.7,3038.6,0.213]
[1764181365881,6.58026738,3039.4,3038.6,0.213]
[1764181366077,3.77408179,3039.1,3038.6,0.213]
[1764181366284,0.4836,3039.1,3038.6,0.213]
[1764181366610,0.4836,3039.1,3038.6,3.50397498]
[1764181366808,0.4836,3039.1,3038.7,0.3503975]
[1764181367115,0.4586,3038.7,3038.6,0.213]
[1764181367315,0.4836,3039.1,3038.6,3.50398927]
[1764181367505,0.4836,3039.1,3038.6,3.96368927]
[1764181367898,0.4836,3039.1,3038.6,0.6727]
[1764181368098,3.77405111,3039.1,3038.6,0.213]
[1764181368437,0.6059,3038.7,3038.6,0.213]
[1764181368794,1.0895,3038.7,3038.6,0.213]
[1764181370494,0.6059,3038.7,3038.6,0.213]
[1764181371193,1.0895,3038.7,3038.6,0.213]
[1764181373322,4.38038096,3038.7,3038.6,0.213]
[1764181373926,0.6059,3038.7,3038.5,0.001]
[1764181374113,3.95868927,3038.6,3038.5,0.001]
[1764181375058,0.6677,3038.6,3038.5,0.214]
[1764181375636,0.4836,3039.3,3038.5,0.6737]
[1764181375839,0.4836,3039.2,3038.5,0.6737]
[1764181376040,3.77396296,3039.2,3038.6,11.01913457]
[1764181376254,0.4836,3039.2,3038.7,1.16928346]
[1764181376462,3.29213786,3039.4,3038.7,1.16928346]
[1764181376671,3.29213786,3039.4,3038.8,10.821569]
[1764181376672,0.002,3039.4,3038.8,10.821569]
[1764181376882,0.002,3039.4,3038.8,24.821002]
[1764181377177,0.002,3039.4,3039.0,22.627534]
[1764181377341,0.002,3039.4,3038.9,2.59902855]
[1764181377342,0.4836,3039.3,3038.9,2.59902855]
[1764181377667,0.002,3039.4,3038.7,1.16928346]
[1764181377668,0.002,3039.4,3038.8,7.309973]
[1764181378186,0.002,3039.4,3038.9,6.58132876]
[1764181378382,0.002,3039.4,3039.3,19.009958]
[1764181378693,0.002,3039.4,3039.3,17.776258]
[1764181378875,0.002,3039.4,3039.3,20.27947791]
[1764181379523,0.002,3039.4,3039.3,30.32237791]
[1764181379663,0.002,3039.4,3039.3,30.72788191]
[1764181380191,0.002,3039.4,3039.3,34.01811321]
[1764181380357,0.002,3039.4,3039.3,33.79032321]
[1764181380553,0.002,3039.6,3039.3,33.79032321]
[1764181380554,0.002,3039.6,3039.4,0.72559411]
[1764181380762,0.00048824,3039.6,3039.5,35.6107891]
[1764181381167,0.44208824,3041.0,3040.0,0.05]
[1764181381375,3.73048221,3041.0,3040.3,6.156066]
[1764181381770,6.76044625,3041.1,3040.3,4.750033]
[1764181382115,6.76044625,3041.1,3040.3,4.379933]
[1764181382301,6.76044625,3041.1,3040.4,0.213]
[1764181382591,3.47206409,3041.1,3040.4,0.79404166]
[1764181382794,0.4586,3040.5,3040.4,0.79404166]
[1764181382988,0.4586,3040.5,3039.5,18.508963]
[1764181383156,0.4586,3040.2,3039.6,0.213]
[1764181383553,0.2944,3039.7,3039.6,0.213]
[1764181383953,0.778,3039.7,3039.4,0.213]
[1764181384200,0.4586,3039.5,3039.4,0.213]
[1764181384360,0.9422,3039.5,3039.4,0.213]
[1764181384551,4.2322148,3039.5,3039.4,0.213]
[1764181386550,4.2322148,3039.5,3038.9,0.213]
[1764181386551,0.72559411,3039.4,3038.9,0.213]
[1764181386756,0.405504,3038.9,3038.7,0.213]
[1764181387152,0.9208,3038.8,3038.7,0.213]
[1764181388483,4.21157267,3038.8,3038.7,0.213]
[1764181390694,0.9208,3038.8,3038.7,0.213]
[1764181390881,0.4579,3038.8,3038.7,0.213]
[1764181391083,4.21157267,3038.8,3038.7,0.214]
[1764181391767,0.9208,3038.8,3038.7,0.214]
[1764181391997,4.27825097,3039.5,3038.7,0.214]
[1764181391998,3.29012305,3039.4,3038.7,0.6717]
[1764181392162,7.0431461,3039.4,3038.7,0.6717]
[1764181392359,7.0431461,3039.4,3038.7,0.001]
[1764181392561,0.5723,3038.8,3038.7,0.214]
[1764181392761,0.4629,3039.3,3038.7,0.214]
[1764181392983,9.87036915,3039.4,3038.7,0.214]
[1764181392984,3.29012305,3039.4,3038.7,0.214]
[1764181393385,3.75293754,3039.5,3038.7,3.50485087]
[1764181393587,7.04297508,3039.5,3038.8,0.39941509]
[1764181393799,0.5723,3038.8,3038.7,0.001]
[1764181394102,1.18849411,3039.4,3038.7,0.214]
[1764181394299,0.4857,3039.3,3038.7,0.214]
[1764181394505,3.29033956,3039.2,3038.7,0.214]
[1764181394908,0.4638,3038.8,3038.7,0.214]
[1764181395293,0.9495,3038.8,3038.7,0.214]
[1764181396018,3.2902739,3039.3,3038.7,0.214]
[1764181396180,7.06555204,3039.6,3038.7,0.214]
[1764181396513,0.4857,3039.3,3038.7,0.214]
[1764181396682,6.57981312,3039.6,3038.7,3.50487014]
[1764181396879,0.5574,3038.8,3038.7,0.214]
[1764181397131,0.4857,3039.5,3038.7,0.164]
[1764181397778,0.5574,3038.8,3038.7,0.164]
[1764181397978,0.5574,3038.8,3038.7,0.213]
[1764181398583,4.33387267,3038.8,3038.7,0.213]
[1764181398787,3.84817267,3038.8,3038.7,0.213]
[1764181398995,4.33387267,3038.8,3038.7,0.213]
[1764181399681,3.84817267,3038.8,3038.7,0.213]
[1764181400011,4.33387267,3038.8,3038.7,0.213]
[1764181401018,4.33387267,3038.8,3038.7,0.163]
[1764181401194,3.84817267,3038.8,3038.7,0.163]
[1764181401591,3.29077267,3038.8,3038.7,0.163]
[1764181401897,0.4638,3038.8,3038.7,0.163]
[1764181402206,0.3693,3038.8,3038.7,0.163]
[1764181402510,0.855,3038.8,3038.5,0.214]
[1764181402900,3.29088096,3038.7,3038.5,0.214]
[1764181403710,0.1853,3038.9,3038.5,0.214]
[1764181403893,3.47601691,3038.9,3038.5,0.214]
[1764181404710,0.4638,3038.6,3038.5,0.214]
[1764181404892,3.47601691,3038.9,3038.5,0.214]
[1764181405090,0.4638,3038.6,3038.5,0.214]
[1764181405501,0.9495,3038.6,3038.5,0.214]
[1764181406985,4.24048927,3038.6,3038.5,0.214]
[1764181408495,10.58243167,3038.6,3038.5,0.214]
[1764181409517,6.3419424,3038.6,3038.5,0.214]
[1764181409892,10.09673167,3038.6,3038.5,0.214]
[1764181410412,6.8057424,3038.6,3038.5,0.214]
[1764181410612,9.63293167,3038.6,3038.5,0.214]
[1764181411089,6.3419424,3038.6,3038.5,0.214]
[1764181411414,9.63293167,3038.6,3038.5,0.214]
[1764181412514,6.3419424,3038.6,3038.5,0.214]
[1764181413386,6.8057424,3038.6,3038.5,0.214]
[1764181413596,6.3419424,3038.6,3038.5,0.214]
[1764181414625,6.8057424,3038.6,3038.5,0.214]
[1764181415112,6.7557424,3038.6,3038.5,0.214]
[1764181415611,10.04673167,3038.6,3038.5,0.214]
[1764181416325,10.53243167,3038.6,3038.5,0.214]
[1764181416521,16.87437407,3038.6,3038.5,0.214]
[1764181417025,16.87437407,3038.6,3038.5,0.001]
[1764181417192,0.405504,3038.5,3038.2,0.001]
[1764181417393,0.405504,3038.0,3037.9,0.001]
[1764181417616,0.405504,3038.0,3036.6,3.95531625]
[1764181417617,0.405504,3037.8,3036.6,0.66220094]
[1764181417794,0.6463,3037.9,3036.6,0.66220094]
[1764181417795,0.405504,3037.0,3036.6,0.001]
[1764181418006,13.3274848,3036.7,3036.6,0.001]
[1764181418324,6.3419424,3036.7,3036.6,0.001]
[1764181418512,0.9495,3036.7,3036.6,0.001]
[1764181419303,0.1853,3036.9,3036.6,0.001]
[1764181419514,3.29272308,3037.0,3036.6,0.001]
[1764181419714,3.47794767,3037.1,3036.6,0.214]
[1764181420026,0.4857,3037.0,3036.6,0.214]
[1764181420226,0.1853,3037.1,3036.6,0.214]
[1764181420521,0.4857,3037.0,3036.6,0.214]
[1764181421607,0.4638,3036.7,3036.6,0.214]
[1764181422098,0.9495,3036.7,3036.6,0.214]
[1764181422499,0.9495,3036.7,3036.6,0.001]
[1764181423596,4.24254837,3036.7,3036.6,0.001]
[1764181424829,0.4638,3036.7,3036.6,0.001]
[1764181424999,0.1853,3037.1,3036.6,0.001]
[1764181425328,0.4968,3036.7,3036.6,0.001]
[1764181425624,4.28864837,3036.7,3036.6,0.001]
[1764181427326,3.78984837,3036.7,3036.6,0.001]
[1764181427899,4.69415237,3036.7,3036.6,0.001]
[1764181428658,4.69415237,3036.7,3036.3,0.001]
[1764181428659,0.550604,3036.6,3036.3,0.001]
[1764181428956,0.405504,3036.2,3035.9,0.001]
[1764181429099,0.152,3036.0,3035.9,0.001]
[1764181429522,0.6508,3036.0,3035.9,0.001]
[1764181429721,4.67020175,3036.0,3035.9,0.001]
[1764181430117,0.4988,3036.6,3035.9,0.001]
[1764181430318,0.4988,3036.6,3035.9,0.4526]
[1764181430528,8.754754,3036.6,3035.9,0.214]
[1764181430728,0.4988,3036.5,3035.9,0.214]
[1764181431726,3.29337373,3036.4,3035.9,0.001]
[1764181432539,0.4988,3036.3,3035.9,0.001]
[1764181432908,3.29337373,3036.4,3035.9,0.001]
[1764181433539,0.4988,3036.3,3035.9,0.001]
[1764181433841,0.4968,3036.0,3035.9,0.001]
[1764181434614,0.9956,3036.0,3035.9,0.001]
[1764181435510,1.401104,3036.0,3035.9,0.001]
[1764181435712,4.69491164,3036.0,3035.9,0.001]
[1764181436637,4.69491164,3036.0,3034.0,0.1304]
[1764181436638,1.13109811,3035.9,3034.0,0.1304]
[1764181436851,1.13109811,3035.9,3034.2,0.213]
[1764181436852,8.255954,3035.0,3034.2,0.213]
[1764181437165,0.405504,3035.4,3034.0,0.7972]
[1764181437166,0.405504,3035.2,3034.0,0.7972]
[1764181437458,0.1908,3034.9,3034.0,4.09311083]
[1764181437748,6.5895687,3035.1,3034.1,0.4548]
[1764181437951,0.405504,3035.0,3034.1,0.001]
[1764181438115,0.904304,3035.0,3034.1,0.001]
[1764181438460,0.405504,3035.1,3034.1,7.04652804]
[1764181438756,3.79337485,3035.3,3034.2,0.4538]
[1764181439053,0.4988,3035.3,3034.2,1.17939411]
[1764181439277,8.255954,3035.1,3034.3,1.10679924]
[1764181439446,0.4968,3034.4,3034.1,0.001]
[1764181439634,0.4968,3034.2,3034.1,0.001]
[1764181439827,0.405504,3034.7,3034.1,0.001]
[1764181440231,0.904304,3034.7,3034.1,0.001]
[1764181440735,0.4968,3034.2,3034.1,0.001]
[1764181440953,8.754754,3034.6,3034.1,0.001]
[1764181441235,0.4988,3034.9,3034.1,0.1314]
[1764181441426,0.72559411,3035.0,3034.1,0.5852]
[1764181442047,6.59000296,3034.9,3034.1,0.5852]
[1764181442256,8.255954,3034.7,3034.1,0.001]
[1764181442472,0.4968,3034.2,3034.1,0.001]
[1764181442770,0.72559411,3034.8,3034.1,0.1314]
[1764181443059,0.4988,3034.7,3034.1,0.001]
[1764181443370,18.14075114,3035.0,3034.2,0.1304]
[1764181443546,0.405504,3034.9,3034.2,0.1304]
[1764181443865,0.4968,3034.3,3034.1,0.001]
[1764181444065,3.42916165,3034.2,3034.1,0.001]
[1764181444735,3.29568279,3034.3,3034.1,0.001]
[1764181444931,8.752754,3034.2,3034.1,0.001]
[1764181445248,9.251554,3034.2,3034.1,0.001]
[1764181445836,8.752754,3034.2,3034.1,0.001]
[1764181446139,3.29576165,3034.2,3034.1,0.001]
[1764181446333,8.255954,3034.9,3034.1,1.0607]
[1764181446958,8.255954,3034.5,3034.1,0.001]
[1764181447464,8.255954,3034.9,3034.2,0.1304]
[1764181447762,8.255954,3034.5,3034.1,0.001]
[1764181448068,8.255954,3034.9,3034.1,0.1314]
[1764181448264,3.29511005,3034.8,3034.1,0.1314]
[1764181448561,0.405504,3035.0,3034.2,0.72559411]
[1764181448763,7.06230332,3035.1,3034.2,0.72559411]
[1764181448940,7.06230332,3035.1,3034.3,0.67416816]
[1764181449758,8.255954,3034.8,3034.3,0.67416816]
[1764181449960,8.255954,3034.8,3034.3,0.213]
[1764181450163,8.255954,3034.4,3034.3,0.213]
[1764181450336,3.29547298,3034.5,3034.3,0.213]
[1764181450536,3.29536634,3034.6,3034.3,0.213]
[1764181451362,3.29525314,3034.7,3034.3,0.213]
[1764181451562,8.255954,3034.8,3034.3,0.213]
[1764181451736,3.29445872,3035.4,3034.7,0.4704]
[1764181452061,6.58891744,3035.4,3034.7,0.4704]
[1764181452262,7.31429447,3035.5,3034.7,0.4704]
[1764181452561,0.405504,3035.4,3034.7,0.4704]
[1764181453563,8.255954,3035.2,3034.7,0.4704]
[1764181453751,8.255954,3035.2,3034.3,0.213]
[1764181454063,8.255954,3035.2,3034.4,0.4589]
[1764181454267,3.29478435,3035.1,3034.4,0.4589]
[1764181454441,6.5895687,3035.1,3034.4,0.4589]
[1764181454761,6.5895687,3035.1,3034.4,3.75443289]
[1764181454762,3.29478435,3035.1,3034.4,3.75443289]
[1764181455073,3.29478435,3035.1,3034.5,0.39674329]
[1764181455249,6.5895687,3035.1,3034.5,0.39674329]
[1764181455449,6.5895687,3035.1,3034.4,0.4589]
[1764181455933,12.01366686,3035.2,3034.4,3.7544353]
[1764181456364,8.255954,3035.2,3034.4,3.7544353]
[1764181456540,11.55063196,3035.2,3034.4,3.2955353]
[1764181456740,0.72559411,3035.5,3034.5,1.16070981]
[1764181457063,3.29435018,3035.5,3034.5,1.88630392]
[1764181457271,6.58870036,3035.5,3034.6,0.4803]
[1764181458156,3.29435018,3035.5,3034.6,0.4803]
[1764181458353,3.29435018,3035.5,3034.7,0.18863039]
[1764181458757,8.255954,3035.2,3034.7,0.18863039]
[1764181458945,8.255954,3035.2,3034.5,0.4803]
[1764181459466,8.255954,3035.2,3034.3,0.213]
[1764181459676,8.255954,3035.2,3034.4,0.213]
[1764181459677,0.463,3035.1,3034.4,0.213]
[1764181460371,8.255954,3035.2,3034.4,0.213]
[1764181460543,8.255954,3035.2,3034.4,0.6933]
[1764181460740,3.29435018,3035.5,3035.1,0.4711]
[1764181461147,3.29435018,3035.5,3035.1,0.4174]
[1764181461370,3.29393603,3035.9,3035.4,0.4711]
[1764181461674,3.29593603,3035.9,3035.4,0.4711]
[1764181461972,0.002,3035.9,3035.8,0.4711]
[1764181462751,0.002,3035.9,3035.8,0.9514]
[1764181462941,0.002,3035.9,3035.8,4.24542463]
[1764181463162,0.002,3035.9,3035.8,5.0206901]
[1764181463674,0.002,3035.9,3035.8,15.02358121]
[1764181463844,0.002,3035.9,3035.8,4.64827658]
[1764181464044,0.002,3035.9,3035.8,2.18495958]
[1764181464585,0.002,3035.9,3035.8,1.40969411]
[1764181464942,0.002,3035.9,3035.8,4.70371874]
[1764181465343,0.002,3035.9,3035.8,1.40969411]
[1764181465781,0.002,3035.9,3035.8,4.70371874]
[1764181466677,0.002,3035.9,3035.8,4.65371874]
[1764181466973,0.4964,3035.9,3035.3,3.29448467]
[1764181467179,0.4964,3035.9,3035.4,0.213]
[1764181467473,0.4964,3035.9,3035.4,0.93859411]
[1764181467678,0.6827,3035.9,3035.4,0.213]
[1764181468373,0.1883,3035.9,3035.4,0.213]
[1764181468585,0.463,3035.8,3035.4,0.213]
[1764181468769,0.1883,3035.9,3035.4,0.213]
[1764181469085,3.29402463,3035.8,3035.4,0.213]
[1764181469258,3.48227503,3035.9,3035.4,0.213]
[1764181469458,7.23925006,3035.9,3035.4,0.213]
[1764181469969,0.002,3035.9,3035.8,0.4711]
[1764181470159,0.002,3035.9,3035.5,0.4803]
[1764181470960,0.002,3035.9,3035.8,0.4711]
[1764181471365,0.002,3035.9,3035.4,3.50739478]
[1764181471562,0.002,3035.9,3035.4,0.213]
[1764181471767,0.002,3035.9,3035.4,3.98773155]
[1764181471987,0.002,3035.9,3035.8,0.4711]
[1764181472485,1.1457,3035.9,3035.5,0.39877316]
[1764181472658,0.002,3035.9,3035.5,0.39877316]
[1764181473053,0.4944,3035.6,3035.5,0.39877316]
[1764181473257,0.6513,3035.9,3035.2,0.72559411]
[1764181473258,0.002,3035.9,3035.2,0.6933]
[1764181473480,0.002,3035.9,3035.5,0.4711]
[1764181473682,0.002,3035.9,3035.8,0.4711]
[1764181473886,0.002,3035.9,3035.8,0.6841]
[1764181474081,0.002,3035.9,3035.8,0.213]
[1764181476087,0.002,3035.9,3035.8,4.45842463]
[1764181476287,0.002,3035.9,3035.8,21.55774509]
[1764181476686,0.002,3035.9,3035.8,22.2833392]
[1764181477289,0.002,3035.9,3035.8,5.6298612]
[1764181477488,0.002,3035.9,3035.8,27.8224762]
[1764181477993,0.002,3035.9,3035.8,23.1633872]
[1764181478286,0.002,3035.9,3035.8,14.5963472]
[1764181478487,0.002,3035.9,3035.8,19.5609452]
[1764181478789,0.002,3035.9,3035.8,11.5196472]
[1764181479491,0.002,3035.9,3035.8,15.8992452]
[1764181479687,0.002,3035.9,3035.8,8.9426472]
[1764181479884,0.002,3035.9,3035.8,8.9436472]
[1764181480473,0.002,3035.9,3035.8,9.0196842]
[1764181480681,0.002,3035.9,3035.8,9.2571082]
[1764181480876,0.002,3035.9,3035.8,5.6308612]
[1764181481271,0.002,3035.9,3035.8,8.9429242]
[1764181481673,0.002,3035.9,3035.8,5.6308612]
[1764181481872,0.002,3035.9,3035.8,8.9429242]
[1764181482271,0.002,3035.9,3035.8,8.1549242]
[1764181483190,0.002,3035.9,3035.8,7.9905242]
[1764181483390,0.002,3035.9,3035.8,4.6784612]
[1764181483595,0.002,3035.9,3035.8,9.7614142]
[1764181483990,0.002,3035.9,3035.8,4.6784612]
[1764181484194,0.002,3035.9,3035.8,9.2587952]
[1764181484368,0.002,3035.9,3035.8,4.6784612]
[1764181484571,0.002,3035.9,3035.8,7.6636172]
[1764181484793,0.002,3035.9,3035.8,7.9037072]
[1764181485412,0.002,3035.9,3035.8,7.9003962]
[1764181485570,0.002,3035.9,3035.8,7.9923962]
[1764181486498,0.002,3035.9,3035.8,16.3458932]
[1764181486680,0.002,3035.9,3035.8,16.7513972]
[1764181487510,0.002,3036.5,3036.2,19.005082]
[1764181487711,0.002,3036.5,3036.4,14.59465411]
[1764181488000,0.002,3036.5,3036.4,6.24117511]
[1764181488204,0.002,3036.5,3036.4,0.212]
[1764181489175,0.002,3036.5,3036.1,0.05]
[1764181489375,0.002,3036.5,3036.3,0.72559411]
[1764181490275,0.002,3036.5,3036.3,1.48307166]
[1764181490597,0.002,3036.5,3036.4,7.50780311]
[1764181491311,0.002,3036.5,3036.4,0.93759411]
[1764181491691,0.9496,3036.5,3036.4,0.212]
[1764181491903,0.4857,3036.5,3036.4,0.212]
[1764181492505,0.9496,3036.5,3036.4,0.212]
[1764181492690,0.9496,3036.5,3036.0,3.057586]
[1764181492890,0.4639,3036.4,3036.1,0.212]
[1764181493231,0.002,3036.5,3036.1,0.212]
[1764181493641,0.002,3036.5,3036.1,3.50560748]
[1764181493793,0.002,3036.5,3036.2,1.07615486]
[1764181494094,0.002,3036.5,3036.4,11.47745411]
[1764181494487,0.002,3036.5,3036.4,24.91308611]
[1764181494692,0.002,3036.5,3036.4,8.17564611]
[1764181495119,0.002,3036.5,3036.3,0.262]
[1764181495120,0.002,3036.5,3036.3,0.05]
[1764181495319,0.002,3036.5,3036.4,0.212]
[1764181495814,0.002,3036.5,3036.4,4.23096784]
[1764181496016,0.4857,3036.5,3036.4,5.02346875]
[1764181496415,0.002,3036.5,3036.4,5.02346875]
[1764181496620,0.4857,3036.5,3036.4,5.02346875]
[1764181496822,0.9496,3036.5,3036.4,0.93759411]
[1764181497193,0.9496,3036.5,3036.4,4.23096784]
[1764181497395,0.002,3036.5,3036.4,4.23096784]
[1764181497595,0.9496,3036.5,3036.4,4.23096784]
[1764181497811,0.9496,3036.5,3036.4,0.93759411]
[1764181498012,0.9496,3036.5,3036.4,4.23096784]
[1764181498321,0.9496,3036.5,3036.4,0.93759411]
[1764181498920,0.9496,3036.5,3036.4,4.23096784]
[1764181499234,0.002,3036.5,3036.4,4.23096784]
[1764181499414,0.4857,3036.5,3036.4,4.23096784]
[1764181499617,0.9496,3036.5,3036.4,0.93759411]
[1764181500423,0.9496,3036.5,3036.4,4.23096784]
[1764181500627,0.9496,3036.5,3036.4,0.93759411]
[1764181501038,0.9496,3036.5,3036.4,0.72559411]